Cogmind - Beta 14 @@@ ROGUE MODE // 2025.03.29 @ 20:14:11 Player: Singularius Result: Destroyed by as-72373 with Assembled Heavy Rifle Performance ------------- Evolutions (0) 0 Regions Visited (4) 800 Robots Destroyed (13) 65 Value Destroyed (237) 237 Prototype IDs (4) 80 Alien Tech Used (0) 0 Bonus (300) 300 TOTAL SCORE: 1482 Bonus ------- Aligned with FarCom 300 Cogmind --------- Core Integrity 0/250 Matter 276/300 Energy 1600/1600 System Corruption 4% Temperature Cool (0) Movement Core (200) Ox3 Location -9/Mines Parts ------- > --- POWER (1) -------- (None) > --- PROPULSION (2) --- (None) > --- UTILITY (2) ------ Small Storage Unit Superbattery > --- WEAPON (2) ------- Medium Laser > --- INVENTORY (8) ---- Light Ion Engine Wheel Flight Unit Medium Laser Peak State ------------ > --- POWER ------------ Ion Engine > --- PROPULSION ------- Wheel Compact Wheel > --- UTILITY ---------- Superbattery Targeting Computer > --- WEAPON ----------- Light Assault Rifle Rocket Launcher > --- INVENTORY -------- Light Ion Engine Wheel Hover Unit Medium Laser Grenade Launcher [Rating: 17] Favorites ----------- Power Ion Engine Engine Ion Engine Propulsion Compact Wheel Wheel Compact Wheel Hover Unit Hover Unit Utility Small Storage Unit Storage Small Storage Unit Processor Targeting Computer Weapon Light Assault Rifle Energy Gun Medium Laser Ballistic Gun Light Assault Rifle Launcher Rocket Launcher Build | -11 -10 -10 -10 -9 ------- Run | Yrd Mat Min Exi Min Slots Evolved . | . . . . . Power . | . . . . . Propulsion . | . . . . . Utility . | . . . . . Weapon . | . . . . . Parts Attached 18 | 6 4 2 2 4 Power 2 | 1 . 1 . . Engine 2 | 1 . 1 . . Core . | . . . . . Reactor . | . . . . . Propulsion 4 | 2 1 . . 1 Treads . | . . . . . Leg . | . . . . . Wheel 3 | 2 1 . . . Hover 1 | . . . . 1 Flight . | . . . . . Utility 4 | 1 1 . 2 . Device . | . . . . . Storage 3 | 1 . . 2 . Processor 1 | . 1 . . . Hackware . | . . . . . Protection . | . . . . . Artifact . | . . . . . Weapon 8 | 2 2 1 . 3 Energy Gun 3 | 1 . . . 2 Energy Cannon . | . . . . . Ballistic Gun 1 | 1 . . . . Ballistic Cannon . | . . . . . Launcher 4 | . 2 1 . 1 Special Weapon . | . . . . . Impact Weapon . | . . . . . Slashing Weapon . | . . . . . Piercing Weapon . | . . . . . Special Melee Weapon . | . . . . . Unidentified Prototypes 1 | . . . 1 . Parts Lost 9 | . 2 . . 7 Power . | . . . . . Propulsion 4 | . 1 . . 3 Utility . | . . . . . Weapon 5 | . 1 . . 4 Highest Loss Streak 6 | . 2 . . 6 To Critical Strikes . | . . . . . Average Slot Usage (%) 92 | . 90 100 100 76 Engine 12 | . 14 14 14 5 Wheel 25 | . 27 28 28 15 Storage 19 | . 14 14 22 28 Processor 7 | . 6 14 5 . Energy Gun 2 | . 1 . . 8 Ballistic Gun 12 | . 14 14 14 7 Launcher 12 | . 12 14 14 9 Peak Build Rating 17 | 6 7 8 17 17 Average Rating 10 | 4 6 7 13 15 On Entrance 7 | . 6 7 8 17 Naked Turns . | . . . . . Heaviest Build 19 | 13 14 15 19 19 Greatest Support 32 | 32 32 26 26 26 Greatest Overweight (x) 4 | . . . . 4 Average Overweight (x) . | . . . . . Largest Inventory Capacity 8 | 8 8 8 8 8 Average Capacity 7 | 6 8 8 7 8 Most Carried 8 | 2 7 8 8 8 Average Carried 6 | . 4 7 7 6 Final Capacity 8 | 8 8 8 8 8 Final Carried 8 | 2 7 8 8 4 Class Distribution -------------------- 100% | Mutant Dominant Class ---------------- Mutant | -10/Materials Mutant | -10/Mines Mutant | -10/Exiles Mutant | -9/Mines Resources | -11 -10 -10 -10 -9 ----------- Run | Yrd Mat Min Exi Min Matter Collected 497 | 196 226 20 . 55 Remotely . | . . . . . Salvage Created 244 | . 184 . . 60 Parts 19 | . 19 . . . Haulers Intercepted 1 | . 1 . . . Recyclers Shooed 1 | . 1 . . . Parts Field Recycled . | . . . . . Retrieved Matter . | . . . . . Parts Self-Destructed . | . . . . . Prevented . | . . . . . Kills | -11 -10 -10 -10 -9 ------- Run | Yrd Mat Min Exi Min Combat Hostiles Destroyed 15 | . 8 . . 7 Guns 3 | . . . . 3 AOE 12 | . 8 . . 4 Classes Destroyed 6 | . 5 . . 1 Worker 2 | . 2 . . . Builder 2 | . 2 . . . Hauler 1 | . 1 . . . Swarmer 3 | . 3 . . . Grunt 5 | . 5 . . . Assembled 7 | . . . . 7 Best Kill Streak 10 | . 10 . . 5 Combat Bots Only 5 | . 5 . . 5 Max Kills in Single Turn 3 | . 3 . . 1 Gunslinging . | . . . . . Exploded 2 | . 2 . . 1 Melee . | . . . . . Uniques/NPCs Destroyed . | . . . . . Combat | -11 -10 -10 -10 -9 -------- Run | Yrd Mat Min Exi Min Hostile Shots Fired 68 | . 30 . . 38 Missed 19 | . 10 . . 9 Damage Taken 926 | . 371 . . 555 Core 261 | . 147 . . 114 Absorbed by Shields . | . . . . . Core Remaining (%) 100 | 100 . . . . Volleys Fired 23 | . 12 . . 11 Largest 2 | . 2 . . 2 Hottest 90 | . 50 . . 90 Shots Fired 43 | . 24 . . 19 Gun 26 | . 12 . . 14 Cannon . | . . . . . Launcher 17 | . 12 . . 5 Special . | . . . . . Kinetic 12 | . 12 . . . Thermal 7 | . . . . 7 Explosive 17 | . 12 . . 5 Electromagnetic 7 | . . . . 7 Robot Hit Streak 8 | . 8 . . 5 Robot Miss Streak 4 | . 4 . . 2 Penetration Max . | . . . . . Secondary Targets . | . . . . . Shots Hit Robots 24 | . 14 . . 10 Core Hits 34 | . 23 . . 11 Critical Kills . | . . . . . Critical Parts Destroyed . | . . . . . Critical Strikes 1 | . . . . 1 Burn 1 | . . . . 1 Melee Attacks . | . . . . . Impact . | . . . . . Slashing . | . . . . . Piercing . | . . . . . Sneak Attacks . | . . . . . Combat Hostiles . | . . . . . Follow-up Attacks . | . . . . . Damage Inflicted 1060 | . 775 . . 285 Guns 127 | . 51 . . 76 Cannons . | . . . . . Explosions 933 | . 724 . . 209 Melee . | . . . . . Ramming . | . . . . . Kinetic 51 | . 51 . . . Thermal 52 | . . . . 52 Explosive 933 | . 724 . . 209 Electromagnetic 24 | . . . . 24 Impact . | . . . . . Slashing . | . . . . . Piercing . | . . . . . Highest Corruption 4 | . 1 1 1 4 Average Corruption 1 | . 1 1 1 1 Corruption Purged . | . . . . . Corruption Blocked . | . . . . . Effects 6 | . 1 1 2 2 Message Errors 2 | . 1 1 . . Energy Discharges 1 | . . . 1 . Parts Rejected 1 | . . . . 1 Data Loss (minor) 2 | . . . 1 1 Overload Shots . | . . . . . Overflow Damage 28 | . 28 . . . Projectiles . | . . . . . Explosions 28 | . 28 . . . Melee . | . . . . . Knockbacks . | . . . . . Impact . | . . . . . Kinetic . | . . . . . Secondary . | . . . . . Self-Inflicted Damage 217 | . 138 . . 79 Shots 10 | . 7 . . 3 Rammed . | . . . . . Targets Rammed . | . . . . . Kicked . | . . . . . Crushed . | . . . . . Highest Temperature 49 | . 47 . . 49 Average Temperature 17 | . 14 . . 23 Received Heat Transfer 123 | . 123 . . . Siege Activations . | . . . . . Robots Corrupted . | . . . . . Combat Hostiles . | . . . . . Parts Fried . | . . . . . Impact Corruptions . | . . . . . Robots Melted . | . . . . . Combat Hostiles . | . . . . . Parts Melted . | . . . . . Heat Transferred 222 | . . . . 222 Parts Sabotaged . | . . . . . Parts Stolen . | . . . . . Parts Stripped . | . . . . . Power Chain Reactions . | . . . . . Alert | -11 -10 -10 -10 -9 ------- Run | Yrd Mat Min Exi Min Peak Influence 283 | . 283 109 . 18 Initial 109 | . . 109 . . Average 96 | . 179 109 . 1 Maximum Alert Level 1 | . 1 . . . Low Security (%) 81 | 100 42 100 . 100 Level 1 18 | . 57 . . . Level 2 . | . . . . . Level 3 . | . . . . . Level 4 . | . . . . . Level 5 . | . . . . . High Security . | . . . . . Max Security . | . . . . . Squads Dispatched 1 | . 1 . . . Investigation . | . . . . . Extermination . | . . . . . Reinforcement 1 | . 1 . . . Assault . | . . . . . Garrison . | . . . . . Intercept . | . . . . . Searches Triggered . | . . . . . Construction Impeded . | . . . . . Haulers Reinforced . | . . . . . Active Scanning Responses . | . . . . . Cargo Convoy Interrupts . | . . . . . Stealth | -11 -10 -10 -10 -9 --------- Run | Yrd Mat Min Exi Min Distress Signals . | . . . . . Communications Jammed . | . . . . . Distress Signals . | . . . . . Times Spotted 24 | . 11 . . 13 Peak Tracking Total 6 | . 6 . . 4 Tactical Retreats 3 | . 1 . . 2 Traps | -11 -10 -10 -10 -9 ------- Run | Yrd Mat Min Exi Min Traps Triggered 1 | . 1 . . . Indirectly . | . . . . . Trap Hack Attempts . | . . . . . Triggered . | . . . . . Disarmed . | . . . . . Reprogrammed . | . . . . . Reused . | . . . . . Traps Extracted . | . . . . . Installed . | . . . . . Triggered . | . . . . . Machines | -11 -10 -10 -10 -9 ---------- Run | Yrd Mat Min Exi Min Machines Disabled 1 | . 1 . . . Max in Single Turn 1 | . 1 . . . Machines Repaired . | . . . . . Machines Dismantled . | . . . . . Machines Sabotaged . | . . . . . Overloaded Fab Kills . | . . . . . Hacking | -11 -10 -10 -10 -9 --------- Run | Yrd Mat Min Exi Min Machines Accessed 4 | . 4 . . . Terminals 3 | . 3 . . . Fabricators . | . . . . . Repair Stations . | . . . . . Recycling Units 1 | . 1 . . . Scanalyzers . | . . . . . Garrison Access . | . . . . . Total Hacks 11 | . 11 . . . Successful 7 | . 7 . . . Failed 4 | . 4 . . . Catastrophic . | . . . . . Database Lockouts . | . . . . . Manual 1 | . . . 1 . Terminals 10 | . 10 . . . Fabricators . | . . . . . Repair Stations . | . . . . . Recycling Units 1 | . 1 . . . Scanalyzers . | . . . . . Garrison Access . | . . . . . Terminal Hacks 6 | . 6 . . . Robot Analysis 1 | . 1 . . . Prototype ID Bank 2 | . 2 . . . Emergency Access Points 1 | . 1 . . . Locate Traps 1 | . 1 . . . Investigation Status 1 | . 1 . . . Fabricator Hacks . | . . . . . Repair Station Hacks . | . . . . . Recycling Unit Hacks 1 | . 1 . . . Report Inventory 1 | . 1 . . . Scanalyzer . | . . . . . Garrison Access Hacks . | . . . . . Unauthorized Hacks . | . . . . . Terminals . | . . . . . Fabricators . | . . . . . Repair Stations . | . . . . . Recycling Units . | . . . . . Scanalyzers . | . . . . . Garrison Access . | . . . . . Data Cores Recovered . | . . . . . Used . | . . . . . Hacking Detections 3 | . 3 . . . Full Trace Events 1 | . 1 . . . Feedback Events . | . . . . . Feedback Blocked . | . . . . . Robot Schematics Acquired . | . . . . . Robots Built . | . . . . . Authchips . | . . . . . Time . | . . . . . Total Robot Build Rating . | . . . . . Part Schematics Acquired . | . . . . . Parts Built . | . . . . . Authchips . | . . . . . Time . | . . . . . Total Part Build Rating . | . . . . . Parts Repaired . | . . . . . Time . | . . . . . Parts Recycled . | . . . . . Recycled Matter . | . . . . . Retrieved Matter . | . . . . . Retrieved Components . | . . . . . Parts Scanalyzed . | . . . . . Part Schematics Acquired . | . . . . . Parts Damaged . | . . . . . Bothacking | -11 -10 -10 -10 -9 ------------ Run | Yrd Mat Min Exi Min Used RIF Installer . | . . . . . Robots Hacked . | . . . . . Non-combat . | . . . . . Combat . | . . . . . Robot Hacks Applied . | . . . . . Relay Couplers Released . | . . . . . Fabnet Peak Effective % . | . . . . . Robots Rewired . | . . . . . Allies Hacked . | . . . . . Hacks Repelled . | . . . . . Allies | -11 -10 -10 -10 -9 -------- Run | Yrd Mat Min Exi Min Total Allies . | . . . . . Largest Group . | . . . . . Highest-Rated Group . | . . . . . Highest-Rated Ally . | . . . . . Total Orders . | . . . . . Ally Attacks . | . . . . . Total Damage . | . . . . . Kills . | . . . . . Allies Corrupted . | . . . . . Allies Melted . | . . . . . Intel | -11 -10 -10 -10 -9 ------- Run | Yrd Mat Min Exi Min Robot Analysis Total 1 | . 1 . . . Derelict Logs Recovered 2 | . . 1 . 1 Drone Launches . | . . . . . Drone Recoveries . | . . . . . Exploration | -11 -10 -10 -10 -9 ------------- Run | Yrd Mat Min Exi Min Turns Passed 1240 | 60 289 337 318 236 Spaces Moved 1190 | 50 250 372 341 177 Core 27 | 1 . . . 26 Treads . | . . . . . Legs . | . . . . . Wheels 1158 | 49 250 372 341 146 Hover 5 | . . . . 5 Flight . | . . . . . Fastest Speed 50 | 50 90 90 90 90 Average Speed 94 | 99 94 90 90 113 Slowest Speed 250 | 100 100 90 90 250 Overloaded Moves . | . . . . . Propulsion Burnouts . | . . . . . Robots Hopped . | . . . . . Cave-ins Triggered . | . . . . . Exploration Rate (%) 50 | 4 56 79 77 38 Regions Visited 4 Branch Regions 3 Pre-discovered Areas 1 | . . 1 . . Known Exits Taken . | . . . . . Unknown Exits Taken 4 | 1 1 1 1 . Scrap Searched 1 | . . 1 . . Spaces Dug . | . . . . . Terrain Destroyed 97 | . 35 . . 62 Melee . | . . . . . Projectile . | . . . . . AOE 97 | . 35 . . 62 Terrain Rammed . | . . . . . Walls Destroyed . | . . . . . Machines Disabled . | . . . . . Actions | -11 -10 -10 -10 -9 --------- Run | Yrd Mat Min Exi Min Total 1255 | 57 279 374 351 194 Wait 10 | . 8 . . 2 Move 1186 | 49 249 371 340 177 Hop . | . . . . . Pick Up 14 | 2 6 . 6 . Fast Attach 8 | 6 2 . . . Attach 5 | . 1 . . 4 Detach . | . . . . . Swap 5 | . 1 2 2 . Drop 3 | . . 1 2 . Fire 23 | . 12 . . 11 Melee . | . . . . . Ram . | . . . . . Kick . | . . . . . Crush . | . . . . . Escape Stasis . | . . . . . Rewire 1 | . . . 1 . Trap . | . . . . . Miscellaneous . | . . . . . Route ------- -11/Scrapyard -10/Materials (discovered 2 exits: [*Mat] / [*Min]) -10/Mines -10/Exiles (discovered 2 exits: [*Min x2]) -9/Mines History --------- Turn | Location | Event 35 | -11/Scrapyard | Discovered new exit (range 15) 61 | -11/Scrapyard | Entered Materials 194 | -10/Materials | Core integrity fell below 50% 277 | -10/Materials | Discovered new exit (range 8) 302 | -10/Materials | Build established: Mutant 334 | -10/Materials | Discovered new exit (range 6) 350 | -10/Materials | Entered Mines 373 | -10/Mines | Deemed a non-threat by the Exiles lab entrance 373 | -10/Mines | Discovered new exit (range 5) 403 | -10/Mines | Received a Rocket Launcher from a helpful Derelict 687 | -10/Mines | Entered Exiles 702 | -10/Exiles | Discovered new exit (range 14) 728 | -10/Exiles | Met 8R-AWN 741 | -10/Exiles | Met EX-HEX 776 | -10/Exiles | Met EX-BIN 787 | -10/Exiles | Aligned with FarCom system 788 | -10/Exiles | Given EX-Vault access code 808 | -10/Exiles | Opened EX-Vault 813 | -10/Exiles | Found Prototype Storage 814 | -10/Exiles | Identified Superbattery 844 | -10/Exiles | Warned to stay clear of 0b10 Research branches 870 | -10/Exiles | Met EX-DEC 925 | -10/Exiles | Visited The Gauntlet 997 | -10/Exiles | Discovered new exit (range 10) 1005 | -10/Exiles | Left Exiles lab with Superbattery 1005 | -10/Exiles | Entered Mines 1033 | -9/Mines | Assembled infested the area 1038 | -9/Mines | Assisted by a Guerilla fighting off Assembled 1049 | -9/Mines | Learned Materials stockpile data 1203 | -9/Mines | Lost 6 parts (3n3w) 1207 | -9/Mines | Core integrity fell below 20% 1241 | -9/Mines | Destroyed by as-72373 with Assembled Heavy Rifle Last Messages --------------- as-61552 destroyed. The unstable cave ceiling collapses. Rocket Launcher destroyed. The unstable cave ceiling collapses. Hover Unit destroyed. as-54376 destroyed. Acquired 20 matter. Acquired 8 matter. System corrupted: Component data lost. The unstable cave ceiling collapses. EM Pulse Gun destroyed. System corrupted by crushing effect (+3). Knocked back. as-84273 suffers critical hit (Burn). as-84273 destroyed. The unstable cave ceiling collapses. as-80512 destroyed. Acquired 15 matter. Acquired 2 matter. The unstable cave ceiling collapses. Map ----- +----------------------------------------------------+ | ?????????????????????????????????????????????????? | | ?????????????????????????????????????????????????? | | ?????????????????????????????????????????????????? | | ?????????????????????????????????????????????????? | | ?????????????????????????????????????????????????? | | ?????????????????????????????????????????????????? | | ?????????????????????????????????????????????????? | | ?????????????????????????????????????????????????? | | ?????????????????????????????????????????????????? | | ?????????????????????????????????????????????????? | | ?????????????????????????????????????????????????? | | ?????????????????????????????????????????????????? | | ?????????????????????????????????????????????????? | | ???????????????????????????####??????????????????? | | ????????????????????????#### ###????????????????? | | ??????????????????????### #????????????????? | | ??????????????????????# ##???????????????? | | ??????????????????????# ## #???????????????? | | ??????????????????????# ### #????????????????? | | ??????????????????????# ## #????????????????? | | ??????????????????????# ### #????????????????? | | ??????????????????????# #?#### ###??????????????? | | ??????????????????????# ###### #??????????????? | | ????????????????????### # ##?????????????? | | ???????????????????## * # ######????????? | | ??????????????????## % @ #????????? | | ??????????????????# # # # #### #????????? | | ??????????????????# ### # #??# #????????? | | ?????????????????# ### ###??# #????????? | | ?????????????# =a #?#####????# #????????? | | ??????? ????# *%a #??????????# #????????? | | ??????? ????## ### #??????????# #????????? | | ??????# ?????#???# ??????????# #????????? | | ??????# ?????????## = ?????????# #????????? | | ??????# ??????????###%! #????????# #????????? | | ??????# ????????????## ##????????# #????????? | | ##????# ?????????????# ####?????????# #????????? | | #????# #???????????## ##??#######??# #??####??? | | #????# ##?????#???## ### ##?# #? #??? | | #???## ###?? #???# s s ### #? #??? | | #???# ##? ##### ## # #??? | | #???? #? s ## # """ #??? | | ##????*%] #? #??# ## """ #??? | | ##???# #?? #???# ###### ### """ #??? | | ##?## ##? #???# ## #????# #?? #??? | | ### ## ##??# ### ##???? #??? ####??? | | ##?# #?## ##???? ??? #?????? | | ## #?# #??# #????# ????#?????? | | ?###### ##?# #### #????# ??????????? | | ??????## ###### ##????# ??????????? | +----------------------------------------------------+ Best States ------------- Heat Dissipation 25 Energy Generation 10 Energy Capacity 1750 Matter Stores 300 Matter Capacity 300 Sight Range 16 Terrain Scan Density 10 Evasion (%) 42 Targeting Accuracy 5 Item Schematics ----------------- None Robot Schematics ------------------ None Fabricated ------------ Nothing Alien Tech Used ----------------- None Achievements -------------- None Challenges ------------ None Game ------ Seed DecoyScatterPrototype Manual? 0 Play Time 00:15:45 Cumulative 21.7 hours Start 2025.03.29 @ 20:00:03 End 2025.03.29 @ 20:14:11 Sessions 1 Manual Loads 0 Difficulty Rogue Special Mode None Game No. 17 Rogue 17 Adventurer 0 Explorer 0 Win Type - Total 0 Types 0/0/0/0/0/0/0/0/0 Lore% 15 Gallery% 20 Achievement% 17 Wizard Run 0 Options --------- Layout 1 ASCII 0 Keyboard 0 Movement Numpad Keybinds 0 Fullscreen 1 Font 24/Smallcaps Map View 50x35 Zoom Use 0% Tactical HUD 0 Map Filters NONE Filters NONE Steam 1 RUN: 2a550aa4-859b-4de7-93a0-21e95dd9f846